[Event "Early Titled Tuesday Blitz | February 8 2022"]
[White "Ozkan, Taha"]
[Black "Ter-Sahakyan, Samvel"]
[WhiteFideId "34577173"]
[BlackFideId "13302531"]
[WhiteElo "2024"]
[BlackElo "2592"]
[Result "1/2-1/2"]
[Round "08"]
[TimeControl "180+1"]
[Date "2022.02.08"]
[WhiteClock "0:00:25"]
[BlackClock "0:00:08"]

1. d4 {[%clk 0:02:56]}  Nf6 {[%clk 0:02:59]} 2. c4 {[%clk 0:02:57]}  e6 {[%clk 0:03:00]} 3. Nc3 {[%clk 0:02:56]}  Bb4 {[%clk 0:02:59]} 4. Qc2 {[%clk 0:02:56]}  d5 {[%clk 0:02:57]} 5. cxd5 {[%clk 0:02:53]}  exd5 {[%clk 0:02:58]} 6. Bg5 {[%clk 0:02:53]}  h6 {[%clk 0:02:58]} 7. Bxf6 {[%clk 0:02:53]}  Qxf6 {[%clk 0:02:58]} 8. a3 {[%clk 0:02:54]}  Bxc3+ {[%clk 0:02:57]} 9. Qxc3 {[%clk 0:02:54]}  O-O {[%clk 0:02:57]} 10. e3 {[%clk 0:02:53]}  Bf5 {[%clk 0:02:57]} 11. Nf3 {[%clk 0:02:51]}  Rc8 {[%clk 0:02:57]} 12. Bd3 {[%clk 0:02:51]}  Bxd3 {[%clk 0:02:53]} 13. Qxd3 {[%clk 0:02:52]}  Nd7 {[%clk 0:02:49]} 14. O-O {[%clk 0:02:52]}  c6 {[%clk 0:02:48]} 15. b4 {[%clk 0:02:52]}  Qd6 {[%clk 0:02:42]} 16. Rfc1 {[%clk 0:02:50]}  a6 {[%clk 0:02:36]} 17. a4 {[%clk 0:02:48]}  Rc7 {[%clk 0:02:27]} 18. Qb3 {[%clk 0:02:44]}  Rac8 {[%clk 0:02:26]} 19. b5 {[%clk 0:02:36]}  cxb5 {[%clk 0:02:19]} 20. Rxc7 {[%clk 0:02:37]}  Qxc7 {[%clk 0:02:18]} 21. axb5 {[%clk 0:02:37]}  Qc1+ {[%clk 0:02:15]} 22. Qd1 {[%clk 0:02:38]}  Qxd1+ {[%clk 0:02:14]} 23. Rxd1 {[%clk 0:02:39]}  a5 {[%clk 0:02:09]} 24. Kf1 {[%clk 0:02:34]}  Nb6 {[%clk 0:02:06]} 25. Ra1 {[%clk 0:02:31]}  a4 {[%clk 0:02:05]} 26. Ne5 {[%clk 0:02:31]}  Rc3 {[%clk 0:01:57]} 27. Ke2 {[%clk 0:02:28]}  Rb3 {[%clk 0:01:50]} 28. Nd3 {[%clk 0:02:27]}  Rxb5 {[%clk 0:01:42]} 29. Nc5 {[%clk 0:02:26]}  Rb2+ {[%clk 0:01:42]} 30. Kf3 {[%clk 0:02:26]}  Rb4 {[%clk 0:01:33]} 31. Nxb7 {[%clk 0:02:23]}  Nc4 {[%clk 0:01:33]} 32. Nc5 {[%clk 0:02:23]}  a3 {[%clk 0:01:32]} 33. e4 {[%clk 0:02:15]}  dxe4+ {[%clk 0:01:14]} 34. Kxe4 {[%clk 0:02:13]}  Rb2 {[%clk 0:01:13]} 35. Nd3 {[%clk 0:02:06]}  Rc2 {[%clk 0:00:59]} 36. d5 {[%clk 0:02:06]}  Kf8 {[%clk 0:00:52]} 37. Kd4 {[%clk 0:01:56]}  Nd6 {[%clk 0:00:48]} 38. Ke3 {[%clk 0:01:07]}  g5 {[%clk 0:00:38]} 39. Ne5 {[%clk 0:01:06]}  f6 {[%clk 0:00:34]} 40. Ng4 {[%clk 0:01:00]}  Rc3+ {[%clk 0:00:23]} 41. Kd2 {[%clk 0:01:00]}  Ne4+ {[%clk 0:00:23]} 42. Ke2 {[%clk 0:00:58]}  h5 {[%clk 0:00:20]} 43. Ne3 {[%clk 0:00:57]}  Ke7 {[%clk 0:00:18]} 44. f3 {[%clk 0:00:53]}  Nc5 {[%clk 0:00:15]} 45. Kd2 {[%clk 0:00:46]}  Rd3+ {[%clk 0:00:15]} 46. Ke2 {[%clk 0:00:45]}  Kd7 {[%clk 0:00:15]} 47. Nc4 {[%clk 0:00:41]}  Rc3 {[%clk 0:00:12]} 48. Nxa3 {[%clk 0:00:39]}  Nb3 {[%clk 0:00:12]} 49. Rd1 {[%clk 0:00:36]}  Nc1+ {[%clk 0:00:11]} 50. Kd2 {[%clk 0:00:35]}  Rxa3 {[%clk 0:00:11]} 51. Kxc1 {[%clk 0:00:34]}  Kd6 {[%clk 0:00:12]} 52. Kb2 {[%clk 0:00:30]}  Re3 {[%clk 0:00:11]} 53. Rd2 {[%clk 0:00:30]}  f5 {[%clk 0:00:11]} 54. Kc2 {[%clk 0:00:29]}  g4 {[%clk 0:00:10]} 55. fxg4 {[%clk 0:00:29]}  hxg4 {[%clk 0:00:10]} 56. g3 {[%clk 0:00:30]}  Re5 {[%clk 0:00:07]} 57. Rd4 {[%clk 0:00:24]}  Rxd5 {[%clk 0:00:03]} 58. Rxd5+ {[%clk 0:00:23]}  Kxd5 {[%clk 0:00:04]} 59. Kd3 {[%clk 0:00:23]}  Ke5 {[%clk 0:00:04]} 60. Ke3 {[%clk 0:00:24]}  Ke6 {[%clk 0:00:04]} 61. Kf4 {[%clk 0:00:25]}  Kf6 {[%clk 0:00:05]} 62. Ke3 {[%clk 0:00:25]}  Ke5 {[%clk 0:00:06]} 63. Kd3 {[%clk 0:00:25]}  f4 {[%clk 0:00:06]} 64. gxf4+ {[%clk 0:00:25]}  Kxf4 {[%clk 0:00:07]} 65. Ke2 {[%clk 0:00:25]}  g3 {[%clk 0:00:07]} 66. hxg3+ {[%clk 0:00:25]}  Kxg3 {[%clk 0:00:08]} 1/2-1/2


[Site "https://www.chess.com"]

[Event "Early Titled Tuesday Blitz | February 8 2022"]
[White "Papasimakopoulos, Alexandros"]
[Black "Makarian, Rudik"]
[WhiteFideId "4244125"]
[BlackFideId "44105681"]
[WhiteElo "2340"]
[BlackElo "2486"]
[Result "1-0"]
[Round "08"]
[TimeControl "180+1"]
[Date "2022.02.08"]
[WhiteClock "0:00:41"]
[BlackClock "0:00:03"]

1. d4 {[%clk 0:02:16]}  Nf6 {[%clk 0:02:59]} 2. c4 {[%clk 0:02:17]}  e6 {[%clk 0:02:59]} 3. Nc3 {[%clk 0:02:17]}  Bb4 {[%clk 0:03:00]} 4. Qc2 {[%clk 0:02:18]}  d5 {[%clk 0:02:59]} 5. cxd5 {[%clk 0:02:18]}  exd5 {[%clk 0:03:00]} 6. Bg5 {[%clk 0:02:18]}  h6 {[%clk 0:02:59]} 7. Bh4 {[%clk 0:02:18]}  O-O {[%clk 0:02:54]} 8. e3 {[%clk 0:02:18]}  Bxc3+ {[%clk 0:02:54]} 9. bxc3 {[%clk 0:02:18]}  c5 {[%clk 0:02:54]} 10. Nf3 {[%clk 0:02:18]}  c4 {[%clk 0:02:53]} 11. Be2 {[%clk 0:02:17]}  Re8 {[%clk 0:02:51]} 12. Ne5 {[%clk 0:02:17]}  Nc6 {[%clk 0:02:40]} 13. f4 {[%clk 0:02:17]}  Ne7 {[%clk 0:02:30]} 14. Bxf6 {[%clk 0:02:09]}  gxf6 {[%clk 0:02:31]} 15. Ng4 {[%clk 0:02:09]}  Bxg4 {[%clk 0:02:29]} 16. Bxg4 {[%clk 0:02:09]}  Kg7 {[%clk 0:02:29]} 17. Kf2 {[%clk 0:02:08]}  b5 {[%clk 0:02:27]} 18. a4 {[%clk 0:02:07]}  b4 {[%clk 0:02:08]} 19. cxb4 {[%clk 0:02:08]}  Nc6 {[%clk 0:02:08]} 20. Qc3 {[%clk 0:01:57]}  a5 {[%clk 0:02:07]} 21. bxa5 {[%clk 0:01:55]}  Nxa5 {[%clk 0:01:57]} 22. Bd1 {[%clk 0:01:47]}  Rb8 {[%clk 0:01:53]} 23. Bc2 {[%clk 0:01:47]}  Nb3 {[%clk 0:01:53]} 24. Rab1 {[%clk 0:01:42]}  Qe7 {[%clk 0:01:47]} 25. Bxb3 {[%clk 0:01:37]}  Qa3 {[%clk 0:01:01]} 26. Qc1 {[%clk 0:01:37]}  Rxb3 {[%clk 0:00:59]} 27. Qxa3 {[%clk 0:01:36]}  Rxa3 {[%clk 0:00:59]} 28. Rhe1 {[%clk 0:01:31]}  Kg6 {[%clk 0:00:35]} 29. Ra1 {[%clk 0:01:23]}  Rexe3 {[%clk 0:00:28]} 30. a5 {[%clk 0:01:24]}  Reb3 {[%clk 0:00:14]} 31. a6 {[%clk 0:01:15]}  Rb2+ {[%clk 0:00:14]} 32. Kf1 {[%clk 0:01:03]}  Rxa1 {[%clk 0:00:10]} 33. Rxa1 {[%clk 0:01:03]}  Rb8 {[%clk 0:00:08]} 34. a7 {[%clk 0:00:59]}  Ra8 {[%clk 0:00:08]} 35. Ke2 {[%clk 0:00:59]}  Kf5 {[%clk 0:00:07]} 36. Kf3 {[%clk 0:01:00]}  Ke6 {[%clk 0:00:07]} 37. Ra6+ {[%clk 0:00:55]}  Kd7 {[%clk 0:00:04]} 38. Rxf6 {[%clk 0:00:55]}  Kc7 {[%clk 0:00:04]} 39. Rxf7+ {[%clk 0:00:52]}  Kb6 {[%clk 0:00:04]} 40. Rd7 {[%clk 0:00:53]}  Rxa7 {[%clk 0:00:01]} 41. Rxd5 {[%clk 0:00:53]}  Rc7 {[%clk 0:00:01]} 42. Rc5 {[%clk 0:00:42]}  Rd7 {[%clk 0:00:01]} 43. Rxc4 {[%clk 0:00:42]}  Kb5 {[%clk 0:00:02]} 44. Rc5+ {[%clk 0:00:41]}  Kb4 {[%clk 0:00:03]} 45. Rc6 {[%clk 0:00:41]} 1-0


[Site "https://www.chess.com"]

[Event "Early Titled Tuesday Blitz | February 8 2022"]
[White "Papp, Petra"]
[Black "Jakubowska, Anna"]
[WhiteFideId "739049"]
[BlackFideId "1121952"]
[WhiteElo "2259"]
[BlackElo "1924"]
[Result "0-1"]
[Round "08"]
[TimeControl "180+1"]
[Date "2022.02.08"]
[WhiteClock "0:00:23"]
[BlackClock "0:00:28"]

1. d4 {[%clk 0:03:00]}  d5 {[%clk 0:02:59]} 2. c4 {[%clk 0:03:00]}  c6 {[%clk 0:02:59]} 3. Nf3 {[%clk 0:03:00]}  Nf6 {[%clk 0:02:59]} 4. Qb3 {[%clk 0:03:00]}  e6 {[%clk 0:02:58]} 5. g3 {[%clk 0:02:54]}  Bd6 {[%clk 0:02:57]} 6. Bg2 {[%clk 0:02:54]}  O-O {[%clk 0:02:57]} 7. O-O {[%clk 0:02:55]}  Nbd7 {[%clk 0:02:55]} 8. Rd1 {[%clk 0:02:54]}  Qe7 {[%clk 0:02:52]} 9. Nc3 {[%clk 0:02:51]}  dxc4 {[%clk 0:02:51]} 10. Qxc4 {[%clk 0:02:51]}  e5 {[%clk 0:02:52]} 11. Bg5 {[%clk 0:02:43]}  h6 {[%clk 0:02:08]} 12. dxe5 {[%clk 0:02:29]}  Nxe5 {[%clk 0:02:02]} 13. Nxe5 {[%clk 0:01:44]}  Bxe5 {[%clk 0:01:55]} 14. Be3 {[%clk 0:01:39]}  Be6 {[%clk 0:01:44]} 15. Qa4 {[%clk 0:01:38]}  Bxc3 {[%clk 0:01:39]} 16. bxc3 {[%clk 0:01:37]}  Bd5 {[%clk 0:01:40]} 17. Bf1 {[%clk 0:01:32]}  b5 {[%clk 0:01:33]} 18. Qb4 {[%clk 0:01:31]}  Qe6 {[%clk 0:01:25]} 19. a4 {[%clk 0:01:12]}  a5 {[%clk 0:01:24]} 20. Qc5 {[%clk 0:01:07]}  Rfe8 {[%clk 0:01:13]} 21. Rd4 {[%clk 0:00:50]}  Ne4 {[%clk 0:01:06]} 22. Qb6 {[%clk 0:00:43]}  Nxc3 {[%clk 0:00:57]} 23. h4 {[%clk 0:00:27]}  b4 {[%clk 0:00:56]} 24. Kh2 {[%clk 0:00:25]}  b3 {[%clk 0:00:47]} 25. Rd2 {[%clk 0:00:24]}  Qe4 {[%clk 0:00:43]} 26. Bh3 {[%clk 0:00:23]}  Rab8 {[%clk 0:00:38]} 27. Qd4 {[%clk 0:00:23]}  b2 {[%clk 0:00:31]} 28. Qxc3 {[%clk 0:00:22]}  bxa1=Q {[%clk 0:00:29]} 29. Qxa1 {[%clk 0:00:23]}  Rb1 {[%clk 0:00:28]} 0-1


[Site "https://www.chess.com"]

[Event "Early Titled Tuesday Blitz | February 8 2022"]
[White "Pavlidou, Ekaterini"]
[Black "Schut, Han"]
[WhiteFideId "4213262"]
[BlackFideId "1005561"]
[WhiteElo "2127"]
[BlackElo "2057"]
[Result "1-0"]
[Round "08"]
[TimeControl "180+1"]
[Date "2022.02.08"]
[WhiteClock "0:01:40"]
[BlackClock "0:00:27"]

1. d4 {[%clk 0:03:00]}  Nf6 {[%clk 0:02:57]} 2. c4 {[%clk 0:03:00]}  g6 {[%clk 0:02:58]} 3. Nc3 {[%clk 0:02:59]}  d5 {[%clk 0:02:58]} 4. cxd5 {[%clk 0:02:58]}  Nxd5 {[%clk 0:02:59]} 5. e4 {[%clk 0:02:58]}  Nxc3 {[%clk 0:02:59]} 6. bxc3 {[%clk 0:02:58]}  Bg7 {[%clk 0:03:00]} 7. Nf3 {[%clk 0:02:55]}  c5 {[%clk 0:03:00]} 8. Be3 {[%clk 0:02:53]}  Qa5 {[%clk 0:03:00]} 9. Qd2 {[%clk 0:02:51]}  Nc6 {[%clk 0:03:00]} 10. Rc1 {[%clk 0:02:41]}  cxd4 {[%clk 0:02:59]} 11. cxd4 {[%clk 0:02:41]}  Qxd2+ {[%clk 0:03:00]} 12. Kxd2 {[%clk 0:02:42]}  O-O {[%clk 0:03:01]} 13. d5 {[%clk 0:02:39]}  Rd8 {[%clk 0:02:59]} 14. Bd3 {[%clk 0:02:37]}  Na5 {[%clk 0:02:41]} 15. Bg5 {[%clk 0:02:31]}  Kf8 {[%clk 0:02:33]} 16. Rc7 {[%clk 0:02:28]}  Rd7 {[%clk 0:01:57]} 17. Rhc1 {[%clk 0:02:26]}  Rxc7 {[%clk 0:01:53]} 18. Rxc7 {[%clk 0:02:25]}  f6 {[%clk 0:01:47]} 19. Be3 {[%clk 0:02:25]}  Ke8 {[%clk 0:01:40]} 20. Bxa7 {[%clk 0:02:20]}  Rxa7 {[%clk 0:01:28]} 21. Rxc8+ {[%clk 0:02:19]}  Kd7 {[%clk 0:01:15]} 22. Rg8 {[%clk 0:02:18]}  Bh6+ {[%clk 0:01:15]} 23. Ke2 {[%clk 0:02:16]}  b6 {[%clk 0:01:10]} 24. Bb5+ {[%clk 0:02:11]}  Kd6 {[%clk 0:01:08]} 25. Kd3 {[%clk 0:01:53]}  Kc5 {[%clk 0:01:03]} 26. a4 {[%clk 0:01:52]}  Kb4 {[%clk 0:00:54]} 27. Nd4 {[%clk 0:01:50]}  Rc7 {[%clk 0:00:30]} 28. Nc6+ {[%clk 0:01:50]}  Nxc6 {[%clk 0:00:30]} 29. Bxc6 {[%clk 0:01:50]}  Bf4 {[%clk 0:00:28]} 30. g3 {[%clk 0:01:45]}  Bd6 {[%clk 0:00:27]} 31. f4 {[%clk 0:01:44]}  e6 {[%clk 0:00:23]} 32. Rd8 {[%clk 0:01:42]}  exd5 {[%clk 0:00:23]} 33. Rxd6 {[%clk 0:01:41]}  dxe4+ {[%clk 0:00:21]} 34. Kxe4 {[%clk 0:01:40]}  Kc5 {[%clk 0:00:22]} 35. Rxf6 {[%clk 0:01:38]}  Rxc6 {[%clk 0:00:22]} 36. Rxc6+ {[%clk 0:01:38]}  Kxc6 {[%clk 0:00:23]} 37. Ke5 {[%clk 0:01:38]}  Kc5 {[%clk 0:00:24]} 38. g4 {[%clk 0:01:38]}  Kb4 {[%clk 0:00:24]} 39. f5 {[%clk 0:01:38]}  gxf5 {[%clk 0:00:24]} 40. gxf5 {[%clk 0:01:39]}  Kxa4 {[%clk 0:00:25]} 41. f6 {[%clk 0:01:39]}  b5 {[%clk 0:00:25]} 42. f7 {[%clk 0:01:40]}  b4 {[%clk 0:00:26]} 43. f8=Q {[%clk 0:01:40]}  b3 {[%clk 0:00:27]} 1-0


[Site "https://www.chess.com"]

[Event "Early Titled Tuesday Blitz | February 8 2022"]
[White "Petesch, Gabriel"]
[Black "Jaskolka, Tomasz"]
[WhiteFideId "2032465"]
[BlackFideId "1170791"]
[WhiteElo "2374"]
[BlackElo "2054"]
[Result "1-0"]
[Round "08"]
[TimeControl "180+1"]
[Date "2022.02.08"]
[WhiteClock "0:02:39"]
[BlackClock "0:02:24"]

1. Nf3 {[%clk 0:03:00]}  d5 {[%clk 0:02:59]} 2. b3 {[%clk 0:03:01]}  Nf6 {[%clk 0:02:59]} 3. Bb2 {[%clk 0:03:00]}  Nbd7 {[%clk 0:03:00]} 4. e3 {[%clk 0:03:00]}  c5 {[%clk 0:02:54]} 5. Be2 {[%clk 0:03:01]}  e6 {[%clk 0:02:53]} 6. O-O {[%clk 0:03:02]}  b6 {[%clk 0:02:53]} 7. c4 {[%clk 0:03:03]}  Bb7 {[%clk 0:02:53]} 8. cxd5 {[%clk 0:03:00]}  exd5 {[%clk 0:02:53]} 9. d4 {[%clk 0:03:00]}  Be7 {[%clk 0:02:52]} 10. Nbd2 {[%clk 0:02:58]}  O-O {[%clk 0:02:51]} 11. Rc1 {[%clk 0:02:57]}  Ne4 {[%clk 0:02:41]} 12. Nxe4 {[%clk 0:02:55]}  dxe4 {[%clk 0:02:41]} 13. Nd2 {[%clk 0:02:55]}  cxd4 {[%clk 0:02:38]} 14. Bxd4 {[%clk 0:02:54]}  Bf6 {[%clk 0:02:35]} 15. Nc4 {[%clk 0:02:51]}  Bxd4 {[%clk 0:02:32]} 16. Qxd4 {[%clk 0:02:50]}  Nf6 {[%clk 0:02:32]} 17. Nd6 {[%clk 0:02:46]}  Bd5 {[%clk 0:02:29]} 18. Nf5 {[%clk 0:02:42]}  Qd7 {[%clk 0:02:26]} 19. Bg4 {[%clk 0:02:39]}  Nxg4 {[%clk 0:02:24]} 20. Qxg7# {[%clk 0:02:39]} 1-0


[Site "https://www.chess.com"]

[Event "Early Titled Tuesday Blitz | February 8 2022"]
[White "Pinheiro, Iung Alicio de O."]
[Black "Prieto Aranguren, Alain"]
[WhiteFideId "2104350"]
[BlackFideId "2268906"]
[WhiteElo "2603"]
[BlackElo "2235"]
[Result "1-0"]
[Round "08"]
[TimeControl "180+1"]
[Date "2022.02.08"]
[WhiteClock "0:00:09"]
[BlackClock "0:00:02"]

1. e4 {[%clk 0:02:59]}  c6 {[%clk 0:02:58]} 2. d4 {[%clk 0:02:56]}  d5 {[%clk 0:02:58]} 3. e5 {[%clk 0:02:56]}  Bf5 {[%clk 0:02:57]} 4. h4 {[%clk 0:02:56]}  Be6 {[%clk 0:02:56]} 5. h5 {[%clk 0:02:45]}  c5 {[%clk 0:02:54]} 6. dxc5 {[%clk 0:02:43]}  Nc6 {[%clk 0:02:54]} 7. a3 {[%clk 0:02:41]}  Nxe5 {[%clk 0:02:52]} 8. b4 {[%clk 0:02:34]}  a5 {[%clk 0:02:51]} 9. Bb2 {[%clk 0:02:30]}  Nc6 {[%clk 0:02:49]} 10. b5 {[%clk 0:02:30]}  Nb8 {[%clk 0:02:45]} 11. a4 {[%clk 0:02:23]}  Nf6 {[%clk 0:02:01]} 12. h6 {[%clk 0:02:21]}  gxh6 {[%clk 0:01:58]} 13. Nd2 {[%clk 0:02:13]}  Qc7 {[%clk 0:01:53]} 14. Nb3 {[%clk 0:02:11]}  Nbd7 {[%clk 0:01:49]} 15. Bd4 {[%clk 0:02:10]}  Bg7 {[%clk 0:01:43]} 16. Bd3 {[%clk 0:01:59]}  O-O {[%clk 0:01:38]} 17. Qe2 {[%clk 0:01:52]}  Bg4 {[%clk 0:01:32]} 18. f3 {[%clk 0:01:51]}  Bh5 {[%clk 0:01:23]} 19. b6 {[%clk 0:00:59]}  Qd8 {[%clk 0:01:17]} 20. O-O-O {[%clk 0:00:56]}  Re8 {[%clk 0:01:13]} 21. g4 {[%clk 0:00:54]}  Bg6 {[%clk 0:01:12]} 22. f4 {[%clk 0:00:53]}  Be4 {[%clk 0:01:06]} 23. Nf3 {[%clk 0:00:51]}  Nxg4 {[%clk 0:01:04]} 24. Rhg1 {[%clk 0:00:45]}  h5 {[%clk 0:00:56]} 25. Bxg7 {[%clk 0:00:40]}  Kxg7 {[%clk 0:00:56]} 26. Bxe4 {[%clk 0:00:39]}  dxe4 {[%clk 0:00:56]} 27. Ne5 {[%clk 0:00:39]}  Nxe5 {[%clk 0:00:38]} 28. Rxd8 {[%clk 0:00:38]}  Raxd8 {[%clk 0:00:31]} 29. fxe5 {[%clk 0:00:38]}  f5 {[%clk 0:00:27]} 30. exf6+ {[%clk 0:00:28]}  exf6 {[%clk 0:00:28]} 31. Rh1 {[%clk 0:00:28]}  Kg6 {[%clk 0:00:23]} 32. Nxa5 {[%clk 0:00:24]}  Rd7 {[%clk 0:00:16]} 33. Nc4 {[%clk 0:00:24]}  f5 {[%clk 0:00:13]} 34. Nd6 {[%clk 0:00:24]}  Re5 {[%clk 0:00:11]} 35. Qb5 {[%clk 0:00:19]}  Rde7 {[%clk 0:00:09]} 36. Nc4 {[%clk 0:00:16]}  Rd5 {[%clk 0:00:08]} 37. Rg1 {[%clk 0:00:11]}  e3 {[%clk 0:00:07]} 38. Qb3 {[%clk 0:00:09]}  e2 {[%clk 0:00:06]} 39. Re1 {[%clk 0:00:09]}  f4 {[%clk 0:00:05]} 40. Nd2 {[%clk 0:00:09]}  Kg5 {[%clk 0:00:02]} 41. Qxd5+ {[%clk 0:00:09]} 1-0


[Site "https://www.chess.com"]

[Event "Early Titled Tuesday Blitz | February 8 2022"]
[White "Politov, Pavel Y."]
[Black "Kanyamarala, Trisha"]
[WhiteFideId "24110515"]
[BlackFideId "45004722"]
[WhiteElo "2090"]
[BlackElo "2002"]
[Result "0-1"]
[Round "08"]
[TimeControl "180+1"]
[Date "2022.02.08"]
[WhiteClock "0:00:09"]
[BlackClock "0:00:18"]

1. e4 {[%clk 0:03:00]}  c5 {[%clk 0:02:59]} 2. Nf3 {[%clk 0:03:00]}  d6 {[%clk 0:02:59]} 3. d4 {[%clk 0:03:00]}  cxd4 {[%clk 0:02:58]} 4. Nxd4 {[%clk 0:03:00]}  Nf6 {[%clk 0:02:58]} 5. Nc3 {[%clk 0:03:01]}  Nc6 {[%clk 0:02:57]} 6. Be2 {[%clk 0:02:29]}  e5 {[%clk 0:02:56]} 7. Nb3 {[%clk 0:02:27]}  h6 {[%clk 0:02:51]} 8. Be3 {[%clk 0:02:25]}  Be6 {[%clk 0:02:50]} 9. O-O {[%clk 0:02:23]}  Be7 {[%clk 0:02:50]} 10. f3 {[%clk 0:02:21]}  O-O {[%clk 0:02:45]} 11. Nd5 {[%clk 0:02:21]}  Bxd5 {[%clk 0:02:41]} 12. exd5 {[%clk 0:02:20]}  Nb4 {[%clk 0:02:41]} 13. c4 {[%clk 0:02:18]}  b6 {[%clk 0:02:39]} 14. Nd2 {[%clk 0:01:51]}  Na6 {[%clk 0:02:31]} 15. Ne4 {[%clk 0:01:49]}  Rc8 {[%clk 0:02:27]} 16. Rc1 {[%clk 0:01:46]}  Nd7 {[%clk 0:02:26]} 17. a3 {[%clk 0:01:44]}  Nac5 {[%clk 0:02:20]} 18. b4 {[%clk 0:01:41]}  Nxe4 {[%clk 0:02:16]} 19. fxe4 {[%clk 0:01:36]}  Bg5 {[%clk 0:02:17]} 20. Qd2 {[%clk 0:01:30]}  Bxe3+ {[%clk 0:02:00]} 21. Qxe3 {[%clk 0:01:29]}  Qg5 {[%clk 0:02:00]} 22. Qxg5 {[%clk 0:01:29]}  hxg5 {[%clk 0:02:01]} 23. Rf5 {[%clk 0:01:28]}  f6 {[%clk 0:02:00]} 24. Rf2 {[%clk 0:01:27]}  Rc7 {[%clk 0:01:59]} 25. Bg4 {[%clk 0:01:27]}  Nb8 {[%clk 0:01:58]} 26. Rf3 {[%clk 0:01:22]}  a5 {[%clk 0:01:52]} 27. Be6+ {[%clk 0:01:09]}  Kh7 {[%clk 0:01:48]} 28. Rfc3 {[%clk 0:01:04]}  axb4 {[%clk 0:01:41]} 29. axb4 {[%clk 0:01:03]}  Na6 {[%clk 0:01:35]} 30. Rb3 {[%clk 0:01:01]}  g6 {[%clk 0:01:33]} 31. Ra1 {[%clk 0:00:49]}  Nb8 {[%clk 0:01:30]} 32. Rc3 {[%clk 0:00:48]}  Nd7 {[%clk 0:01:24]} 33. Ra6 {[%clk 0:00:46]}  Rb8 {[%clk 0:01:18]} 34. Bxd7 {[%clk 0:00:34]}  Rxd7 {[%clk 0:01:18]} 35. c5 {[%clk 0:00:34]}  bxc5 {[%clk 0:01:18]} 36. bxc5 {[%clk 0:00:34]}  Rb1+ {[%clk 0:01:15]} 37. Kf2 {[%clk 0:00:33]}  Rb2+ {[%clk 0:01:15]} 38. Kf3 {[%clk 0:00:31]}  dxc5 {[%clk 0:01:09]} 39. Rxf6 {[%clk 0:00:26]}  g4+ {[%clk 0:00:59]} 40. Kxg4 {[%clk 0:00:24]}  Rxg2+ {[%clk 0:00:58]} 41. Kh3 {[%clk 0:00:24]}  Re2 {[%clk 0:00:57]} 42. Rc4 {[%clk 0:00:15]}  Rb7 {[%clk 0:00:41]} 43. Re6 {[%clk 0:00:13]}  Rb3+ {[%clk 0:00:38]} 44. Kg4 {[%clk 0:00:12]}  Rg2+ {[%clk 0:00:35]} 45. Kh4 {[%clk 0:00:11]}  Rxh2+ {[%clk 0:00:34]} 46. Kg4 {[%clk 0:00:11]}  Rg2+ {[%clk 0:00:29]} 47. Kh4 {[%clk 0:00:11]}  g5+ {[%clk 0:00:18]} 48. Kh5 {[%clk 0:00:09]}  Rh3# {[%clk 0:00:18]} 0-1


[Site "https://www.chess.com"]

[Event "Early Titled Tuesday Blitz | February 8 2022"]
[White "Ponkratov, Pavel"]
[Black "Guliyev, Namig"]
[WhiteFideId "4157800"]
[BlackFideId "13400363"]
[WhiteElo "2487"]
[BlackElo "2487"]
[Result "1-0"]
[Round "08"]
[TimeControl "180+1"]
[Date "2022.02.08"]
[WhiteClock "0:00:52"]
[BlackClock "0:00:20"]

1. d4 {[%clk 0:03:00]}  d5 {[%clk 0:03:00]} 2. c4 {[%clk 0:03:01]}  dxc4 {[%clk 0:03:00]} 3. e4 {[%clk 0:03:00]}  Nf6 {[%clk 0:03:01]} 4. e5 {[%clk 0:03:00]}  Nd5 {[%clk 0:03:01]} 5. Bxc4 {[%clk 0:03:01]}  Bf5 {[%clk 0:03:02]} 6. Nf3 {[%clk 0:03:00]}  e6 {[%clk 0:03:01]} 7. Nc3 {[%clk 0:03:00]}  c6 {[%clk 0:02:59]} 8. O-O {[%clk 0:02:59]}  Be7 {[%clk 0:02:59]} 9. h3 {[%clk 0:02:59]}  O-O {[%clk 0:02:58]} 10. Re1 {[%clk 0:02:54]}  Nd7 {[%clk 0:02:56]} 11. Ne4 {[%clk 0:02:53]}  Bxe4 {[%clk 0:02:49]} 12. Rxe4 {[%clk 0:02:52]}  Re8 {[%clk 0:02:34]} 13. a3 {[%clk 0:02:51]}  b5 {[%clk 0:02:27]} 14. Bd3 {[%clk 0:02:47]}  Qb6 {[%clk 0:02:28]} 15. Ng5 {[%clk 0:02:36]}  h6 {[%clk 0:02:20]} 16. Nxf7 {[%clk 0:02:31]}  Kxf7 {[%clk 0:02:18]} 17. Qh5+ {[%clk 0:02:31]}  Kg8 {[%clk 0:02:17]} 18. Rg4 {[%clk 0:02:30]}  Bg5 {[%clk 0:02:10]} 19. Bxg5 {[%clk 0:02:29]}  hxg5 {[%clk 0:02:11]} 20. Qh7+ {[%clk 0:02:08]}  Kf7 {[%clk 0:02:01]} 21. Qh5+ {[%clk 0:01:21]}  Kf8 {[%clk 0:01:51]} 22. Bg6 {[%clk 0:01:17]}  Rec8 {[%clk 0:01:24]} 23. Rd1 {[%clk 0:01:13]}  c5 {[%clk 0:01:18]} 24. Rd3 {[%clk 0:01:09]}  Nf4 {[%clk 0:01:08]} 25. Qxg5 {[%clk 0:00:59]}  Nxg6 {[%clk 0:00:51]} 26. Qxg6 {[%clk 0:00:56]}  cxd4 {[%clk 0:00:43]} 27. Qxg7+ {[%clk 0:00:55]}  Ke8 {[%clk 0:00:42]} 28. Rgxd4 {[%clk 0:00:53]}  Nf8 {[%clk 0:00:28]} 29. Rf4 {[%clk 0:00:52]}  Rc1+ {[%clk 0:00:22]} 30. Kh2 {[%clk 0:00:52]}  Qc5 {[%clk 0:00:20]} 31. Qf7# {[%clk 0:00:52]} 1-0


[Site "https://www.chess.com"]